bitfinex/quotes_SOLUSD_20241111
["timestamp","ask_amount","ask_price","bid_price","bid_amount"]
[1731331350850,4.6264,216.15,216.08,58.46088187]
[1731331351054,4.6264,216.15,216.08,38.46088187]
[1731331351858,4.6264,216.15,216.08,11.5696]
[1731331352059,26.89128187,216.14,216.07,20.0]
[1731331352262,4.6264,216.15,216.05,26.65754843]
[1731331352263,26.89128187,216.12,216.05,6.52904843]
[1731331352558,31.51838187,216.12,216.05,6.52904843]
[1731331352871,4.6271,216.12,216.05,11.15754843]
[1731331353571,31.51838187,216.12,216.04,33.28858187]
[1731331353956,31.51838187,216.12,216.04,37.91728187]
[1731331354463,31.51838187,216.12,216.04,49.48918187]
[1731331355260,4.6271,216.12,216.04,49.48918187]
[1731331357563,26.89128187,216.12,216.04,49.48918187]
[1731331357980,4.6262,216.16,216.09,26.89128187]
[1731331358181,4.6262,216.16,216.1,0.92515922]
[1731331358681,26.89128187,216.15,216.1,0.92515922]
[1731331359065,26.89128187,216.15,216.07,32.44449316]
[1731331359066,4.6266,216.14,216.07,32.44449316]
[1731331359876,4.626,216.17,216.11,26.89128187]
[1731331360080,4.626,216.17,216.11,27.81634529]
[1731331360860,4.626,216.17,216.11,0.92506342]
[1731331361393,26.89128187,216.18,216.11,32.44344529]
[1731331361569,26.89128187,216.2,216.12,20.0]
[1731331362077,26.89128187,216.16,216.1,20.0]
[1731331362286,26.89128187,216.16,216.08,20.0]
[1731331362468,26.89128187,216.18,216.1,20.0]
[1731331362777,26.89128187,216.18,216.11,27.8163711]
[1731331363478,163.6242,216.25,216.14,26.89128187]
[1731331363689,26.89128187,216.23,216.14,26.89128187]
[1731331363869,26.89128187,216.19,216.12,35.1029]
[1731331364482,26.89128187,216.19,216.12,61.99418187]
[1731331364869,16.80387946,216.2,216.12,56.53367946]
[1731331365070,16.80387946,216.2,216.13,0.92502358]
[1731331365468,159.0,216.23,216.14,46.69876346]
[1731331365783,16.80387946,216.24,216.17,20.0]
[1731331366164,16.80387946,216.26,216.18,40.58076346]
[1731331366371,16.80387946,216.28,216.2,16.80387946]
[1731331366685,16.80387946,216.3,216.24,21.6554]
[1731331367065,21.42707946,216.3,216.24,21.6554]
[1731331367281,159.0,216.31,216.25,20.0]
[1731331367868,16.80387946,216.32,216.25,20.0]
[1731331368089,16.80387946,216.34,216.27,20.0]
[1731331368295,16.80387946,216.38,216.31,20.0]
[1731331368467,16.80387946,216.38,216.24,54.64477946]
[1731331368468,16.80387946,216.32,216.25,23.776884]
[1731331368673,16.80387946,216.32,216.26,20.0]
[1731331368873,26.85628055,216.32,216.26,20.0]
[1731331369069,26.85628055,216.36,216.28,46.85628055]
[1731331369586,26.85628055,216.36,216.28,20.0]
[1731331370178,159.0,216.45,216.28,20.0]
[1731331370179,26.85628055,216.34,216.28,20.0]
[1731331370975,26.85628055,216.34,216.27,20.0]
[1731331371791,16.1722,216.42,216.24,21.6554]
[1731331371792,26.85628055,216.3,216.24,21.6554]
[1731331372163,4.6234,216.29,216.24,21.6554]
[1731331372366,26.85628055,216.28,216.24,6.118]
[1731331372567,26.85628055,216.26,216.19,15.981]
[1731331372773,185.85628055,216.26,216.19,15.981]
[1731331374293,190.48038055,216.26,216.2,20.0]
[1731331374670,31.48038055,216.26,216.2,20.0]
[1731331374867,26.85628055,216.33,216.26,20.0]
[1731331375087,26.85628055,216.33,216.25,26.85628055]
[1731331375391,26.85628055,216.33,216.2,16.1885]
[1731331375392,26.85628055,216.29,216.22,20.0]
[1731331375893,4.6219,216.36,216.26,26.85628055]
[1731331376078,26.85628055,216.35,216.26,26.85628055]
[1731331376278,26.85628055,216.33,216.24,26.85628055]
[1731331376483,26.85628055,216.33,216.25,20.0]
[1731331377484,26.85628055,216.35,216.27,20.0]
[1731331377683,26.85628055,216.33,216.27,20.0]
[1731331378083,26.85628055,216.33,216.25,20.0]
[1731331378597,31.47898055,216.33,216.25,20.0]
[1731331379097,31.47898055,216.33,216.25,24.6242]
[1731331379978,31.47898055,216.33,216.25,36.1848]
[1731331379979,26.85628055,216.33,216.25,36.1848]
[1731331380181,4.6224,216.34,216.26,26.85628055]
[1731331380704,26.85628055,216.35,216.27,24.6238]
[1731331380882,31.47838055,216.35,216.27,36.1834]
[1731331381888,26.85628055,216.33,216.27,36.1834]
[1731331382386,26.85628055,216.31,216.25,20.0]
[1731331382788,26.85628055,216.31,216.22,43.04318055]
[1731331384104,159.0,216.31,216.25,20.0]
[1731331384607,159.0,216.31,216.27,20.0]
[1731331385108,26.85628055,216.37,216.29,20.0]
[1731331385778,31.47798055,216.37,216.28,33.09928055]
[1731331385996,4.6217,216.37,216.3,26.85628055]
[1731331386800,4.6214,216.39,216.32,26.85628055]
[1731331386981,31.47728055,216.41,216.32,26.85628055]
[1731331388211,31.47728055,216.41,216.33,16.1789]
[1731331388511,4.621,216.41,216.34,26.85628055]
[1731331389001,4.6207,216.42,216.34,26.85628055]
[1731331389590,4.6207,216.42,216.36,26.85628055]
[1731331390407,26.85628055,216.43,216.36,26.85628055]
[1731331390408,31.47668055,216.43,216.36,31.47808055]
[1731331390788,21.38926286,216.43,216.35,16.76886286]
[1731331391187,4.6204,216.43,216.36,6.243]
[1731331392407,159.0,216.42,216.37,21.39056286]
[1731331392606,159.0,216.45,216.37,21.39056286]
[1731331393411,159.0,216.45,216.36,6.243]
[1731331393412,16.76886286,216.42,216.36,6.243]
[1731331394115,4.6204,216.43,216.37,16.76886286]
[1731331394690,159.0,216.45,216.39,16.76886286]
[1731331394891,11.5478,216.5,216.37,4.6216]
[1731331394892,159.0,216.49,216.43,16.76886286]
[1731331395108,159.0,216.48,216.45,16.76886286]
[1731331395303,163.6186,216.52,216.45,16.76886286]
[1731331395593,175.76886286,216.56,216.47,16.76886286]
[1731331395812,159.0,216.55,216.47,16.76886286]
[1731331396012,159.0,216.55,216.49,16.76886286]
[1731331396594,4.618,216.54,216.49,16.76886286]
[1731331397911,159.0,216.55,216.47,16.76886286]
[1731331398119,16.76886286,216.5,216.46,6.2765]
[1731331398408,159.0,216.49,216.46,6.2765]
[1731331398793,159.0,216.49,216.46,37.69988044]
[1731331399296,159.0,216.49,216.48,26.80378044]
[1731331399900,31.42148044,216.56,216.48,42.97148044]
[1731331400115,159.0,216.55,216.48,42.97148044]
[1731331400323,4.6174,216.57,216.5,26.80378044]
[1731331401097,26.80378044,216.53,216.46,33.08028044]
[1731331401806,26.80378044,216.53,216.46,37.69998044]
[1731331402213,26.80378044,216.53,216.46,33.08028044]
[1731331402418,26.80378044,216.51,216.46,6.2765]
[1731331402602,26.80378044,216.49,216.46,6.2765]
[1731331403613,159.0,216.59,216.47,42.97218044]
[1731331403823,12.90800961,216.62,216.46,6.2765]
[1731331403824,26.80378044,216.54,216.46,6.2765]
[1731331403995,26.80378044,216.52,216.46,6.2765]
[1731331405716,4.6187,216.51,216.46,6.2765]
[1731331406107,31.42138044,216.56,216.47,26.80378044]
[1731331406996,26.80378044,216.52,216.46,6.2765]
[1731331407913,4.6187,216.51,216.46,6.2765]
[1731331408327,26.80378044,216.5,216.46,6.2765]
[1731331408503,26.80378044,216.48,216.42,16.1667]
[1731331408707,26.80378044,216.46,216.42,16.1667]
[1731331408910,159.0,216.45,216.42,16.1667]
[1731331409097,26.80378044,216.46,216.42,16.1667]
[1731331410099,26.80378044,216.44,216.41,6.615]
[1731331410298,26.80378044,216.44,216.37,26.80378044]
[1731331410499,159.0,216.43,216.36,22.0679]
[1731331410714,159.0,216.43,216.36,26.6897]
[1731331411026,159.0,216.43,216.39,26.80378044]
[1731331411325,159.0,216.43,216.37,26.80378044]
[1731331411505,159.0,216.43,216.36,22.0679]
[1731331412325,4.6206,216.42,216.36,22.0679]
[1731331412795,4.6206,216.42,216.37,26.80378044]
[1731331413227,185.80378044,216.5,216.41,26.80378044]
[1731331413404,159.0,216.49,216.41,26.80378044]
[1731331414113,159.0,216.49,216.43,26.80378044]
[1731331414707,159.0,216.49,216.41,26.80378044]
[1731331415920,4.6193,216.48,216.41,26.80378044]
[1731331416124,4.6193,216.48,216.41,31.42458044]
[1731331416709,159.0,216.47,216.41,31.42458044]
[1731331417308,163.6196,216.47,216.41,31.42458044]
[1731331417602,163.6196,216.47,216.4,16.1733]
[1731331418017,26.80378044,216.46,216.4,11.5523]
[1731331418721,26.80378044,216.46,216.39,26.80378044]
[1731331419223,4.62,216.45,216.37,26.80378044]
[1731331419425,159.0,216.44,216.37,31.42538044]
[1731331420429,163.6202,216.44,216.37,31.42538044]
[1731331420808,159.0,216.44,216.39,26.80378044]
[1731331421010,159.0,216.44,216.41,26.80378044]
[1731331421619,159.0,216.44,216.39,26.80378044]
[1731331422127,163.6202,216.44,216.39,26.80378044]
[1731331422306,163.6202,216.44,216.37,42.97958044]
[1731331422813,159.0,216.43,216.37,28.31870618]
[1731331424011,159.0,216.43,216.42,16.76450618]
[1731331424209,11.5448,216.55,216.37,16.1759]
[1731331424210,16.76450618,216.46,216.37,11.5542]
[1731331424420,16.76450618,216.44,216.37,11.5542]
[1731331424620,16.76450618,216.44,216.36,22.0679]
[1731331425022,0.1,216.51,216.36,22.0679]
[1731331425023,16.76450618,216.42,216.36,22.0679]
[1731331426208,4.6208,216.41,216.36,22.0679]
[1731331426422,159.0,216.4,216.36,22.0679]
[1731331427932,163.6211,216.4,216.36,22.0679]
[1731331428139,159.0,216.4,216.36,22.0679]
[1731331428636,163.6211,216.4,216.36,22.0679]
[1731331428817,4.6211,216.4,216.36,22.0679]
[1731331429016,16.76450618,216.38,216.32,11.5565]
[1731331429233,16.76450618,216.38,216.31,6.1222]
[1731331429521,159.0,216.37,216.31,6.1222]
[1731331429921,159.0,216.36,216.31,6.1222]
[1731331430227,159.0,216.35,216.31,22.88670618]
[1731331431613,159.0,216.35,216.31,39.06690618]
[1731331431913,159.0,216.35,216.33,16.76450618]
[1731331432109,16.76450618,216.42,216.33,16.76450618]
[1731331432110,159.0,216.41,216.33,16.76450618]
[1731331432314,163.6209,216.41,216.35,16.76450618]
[1731331432521,163.6209,216.41,216.31,22.3024]
[1731331432522,16.76450618,216.38,216.31,6.1222]
[1731331432730,16.76450618,216.4,216.31,39.06700618]
[1731331432942,163.6209,216.41,216.33,16.76450618]
[1731331434029,163.6209,216.41,216.33,21.38690618]
[1731331434734,163.6209,216.41,216.33,32.94330618]
[1731331435027,159.0,216.41,216.37,16.76450618]
[1731331435233,159.0,216.4,216.37,16.76450618]
[1731331435642,159.0,216.4,216.35,16.76450618]
[1731331436117,159.0,216.4,216.36,4.6219]
[1731331436528,159.0,216.4,216.37,16.76450618]
[1731331437425,159.0,216.4,216.39,16.76450618]
[1731331439242,159.0,216.4,216.37,16.76450618]
[1731331440516,159.0,216.39,216.37,16.76450618]
[1731331440716,159.0,216.39,216.35,16.76450618]
[1731331441323,159.0,216.39,216.36,4.6219]
[1731331441926,159.0,216.39,216.37,16.76450618]
[1731331442239,159.0,216.39,216.36,16.1767]
[1731331442240,159.0,216.39,216.36,11.5548]
[1731331442642,159.0,216.39,216.36,16.1767]
[1731331443335,159.0,216.39,216.36,11.5548]
[1731331443546,163.6213,216.39,216.33,16.76450618]
[1731331443841,159.0,216.38,216.32,11.5568]
[1731331444046,159.0,216.37,216.31,6.1222]
[1731331444554,16.76450618,216.36,216.31,6.1222]
[1731331445333,4.6221,216.35,216.31,6.1222]
[1731331445531,175.76450618,216.34,216.26,6.5429]
[1731331445737,16.76450618,216.32,216.26,6.5429]
[1731331446121,159.0,216.33,216.26,6.5429]
[1731331446366,159.0,216.33,216.26,11.1668]
[1731331446942,159.0,216.33,216.27,16.76450618]
[1731331447131,159.0,216.33,216.29,16.76450618]
[1731331448043,159.0,216.33,216.31,16.76450618]
[1731331448218,159.0,216.37,216.31,16.76450618]
[1731331448720,16.76450618,216.35,216.28,4.6236]
[1731331448919,16.76450618,216.35,216.27,16.76450618]
[1731331449518,159.0,216.37,216.31,16.76450618]
[1731331449720,159.0,216.36,216.31,16.76450618]
[1731331450140,159.0,216.36,216.32,4.6227]
[1731331450523,159.0,216.35,216.33,16.76450618]
[1731331451429,159.0,216.4,216.33,16.76450618]
[1731331451744,159.0,216.42,216.36,38.88600618]
[1731331452256,159.0,216.42,216.37,16.1759]
[1731331452743,159.0,216.41,216.37,16.1759]
[1731331453123,159.0,216.41,216.37,32.94040618]
[1731331455652,159.0,216.44,216.39,16.76450618]
[1731331455822,159.0,216.43,216.39,16.76450618]
[1731331456026,159.0,216.46,216.4,20.0]
[1731331456251,159.0,216.49,216.45,16.76450618]
[1731331456457,16.76450618,216.52,216.45,21.38450618]
[1731331456624,16.76450618,216.48,216.41,16.76450618]
[1731331456828,16.76450618,216.48,216.41,4.6207]
[1731331457030,159.0,216.47,216.4,11.5523]
[1731331457326,16.76450618,216.44,216.36,22.1215]
[1731331457522,16.76450618,216.42,216.36,22.1215]
[1731331457752,159.0,216.41,216.36,26.7433]
[1731331458131,159.0,216.41,216.37,16.76450618]
[1731331458331,159.0,216.41,216.36,38.2981]
[1731331458529,0.1,216.52,216.36,6.5832]
[1731331458530,159.0,216.4,216.36,6.5832]
[1731331459041,159.0,216.4,216.36,11.205]
[1731331459242,159.0,216.4,216.39,16.76450618]
[1731331459454,159.0,216.43,216.39,16.76450618]
[1731331459832,159.0,216.53,216.42,36.76450618]
[1731331460031,16.76450618,216.58,216.46,20.0]
[1731331460236,16.5886,216.62,216.45,15.3734]
[1731331460237,16.76450618,216.56,216.49,4.6191]
[1731331460451,16.76450618,216.56,216.48,36.1676]
[1731331460650,16.76450618,216.56,216.49,16.76450618]
[1731331460952,16.76450618,216.56,216.48,16.1676]
[1731331461250,16.76450618,216.54,216.48,16.1676]
[1731331461752,16.76450618,216.54,216.48,11.5483]
[1731331462051,4.6175,216.57,216.45,15.3734]
[1731331462052,16.76450618,216.49,216.45,15.3734]
[1731331462558,159.0,216.52,216.43,6.148]
[1731331462559,16.76450618,216.47,216.43,6.148]
[1731331462849,16.76450618,216.45,216.43,6.148]
[1731331463049,16.76450618,216.47,216.43,6.148]
[1731331464038,16.76450618,216.49,216.43,10.7683]
[1731331464242,159.0,216.52,216.44,20.0]
[1731331464550,16.76450618,216.59,216.46,0.1]
[1731331464751,16.76450618,216.55,216.44,20.0]
[1731331464955,16.76450618,216.55,216.46,16.76450618]
[1731331465753,16.76450618,216.51,216.43,6.148]
[1731331465936,159.0,216.5,216.44,16.76450618]
[1731331466136,159.0,216.5,216.43,6.148]
[1731331466561,159.0,216.5,216.44,4.6202]
[1731331466850,159.0,216.5,216.44,21.38470618]
[1731331467053,159.0,216.5,216.44,11.5505]
[1731331467353,159.0,216.5,216.46,16.76450618]
[1731331467558,159.0,216.5,216.44,32.93520618]
[1731331467734,159.0,216.5,216.44,16.1707]
[1731331468241,159.0,216.5,216.44,11.5505]
[1731331468441,16.76450618,216.49,216.44,11.5505]
[1731331469247,159.0,216.5,216.44,16.1707]
[1731331469642,159.0,216.5,216.44,32.93520618]
[1731331470046,159.0,216.49,216.44,32.93520618]
[1731331470641,159.0,216.49,216.44,16.1707]
[1731331471456,159.0,216.49,216.44,32.93520618]
[1731331472651,159.0,216.49,216.47,16.1684]
[1731331473463,159.0,216.56,216.48,52.19950618]
[1731331473636,159.0,216.61,216.53,16.76450618]
[1731331473960,159.0,216.61,216.54,6.0662]
[1731331474130,159.0,216.68,216.59,16.76450618]
[1731331474336,16.76450618,216.65,216.57,16.76450618]
[1731331474767,16.76450618,216.65,216.58,16.1602]
[1731331474970,4.6159,216.64,216.58,11.543]
[1731331475145,16.76450618,216.65,216.58,16.1602]
[1731331476057,159.0,216.67,216.59,32.90420618]
[1731331476665,159.0,216.66,216.63,16.1565]
[1731331476847,159.0,216.66,216.65,16.76450618]
[1731331477043,16.76450618,216.74,216.64,20.0]
[1731331477362,16.76450618,216.71,216.64,20.0]
[1731331477655,16.76450618,216.71,216.63,32.92100618]
[1731331477656,159.0,216.7,216.63,32.92100618]
[1731331478336,159.0,216.7,216.65,16.76450618]
[1731331478959,159.0,216.7,216.67,16.76450618]
[1731331479173,135.6668,216.7,216.69,36.86450618]
[1731331479347,1.35553915,216.85,216.73,0.2]
[1731331479554,16.76450618,216.85,216.76,16.76450618]
[1731331480338,16.76450618,216.85,216.77,4.6131]
[1731331480561,16.76450618,216.85,216.76,28.29780618]
[1731331480562,112.3336,216.85,216.76,16.1466]
[1731331480745,26.73248692,216.83,216.76,16.1466]
[1731331480946,26.73248692,216.83,216.76,11.5333]
[1731331481252,26.73248692,216.83,216.75,26.73248692]
[1731331481642,26.73248692,216.81,216.7,6.0945]
[1731331481847,26.73248692,216.81,216.72,26.73248692]
[1731331482369,26.73248692,216.79,216.7,32.82698692]
[1731331482859,26.73248692,216.81,216.72,26.73248692]
[1731331483269,112.3336,216.82,216.7,6.0945]
[1731331483476,26.73248692,216.9,216.75,0.1]
[1731331483775,112.3336,216.89,216.81,26.73248692]
[1731331483939,139.06608692,216.88,216.78,26.73248692]
[1731331484145,26.73248692,216.86,216.78,26.73248692]
[1731331484351,26.73248692,216.83,216.75,20.0]
[1731331484551,112.3336,216.82,216.74,26.73248692]
[1731331484868,26.73248692,216.81,216.74,26.73248692]
[1731331485053,26.73248692,216.77,216.7,32.82698692]
[1731331485544,112.3336,216.79,216.7,6.0945]
[1731331485771,112.3336,216.78,216.7,32.82698692]
[1731331486055,26.73248692,216.77,216.7,6.0945]
[1731331486565,26.73248692,216.73,216.66,26.73248692]
[1731331488666,26.73248692,216.75,216.66,26.73248692]
[1731331489170,112.3336,216.76,216.7,26.73248692]
[1731331489377,112.3336,216.76,216.68,26.73248692]
[1731331489573,26.73248692,216.75,216.67,20.0]
[1731331489773,26.73248692,216.75,216.66,26.73248692]
[1731331489953,26.73248692,216.73,216.66,26.73248692]
[1731331490147,26.73248692,216.69,216.65,6.3649]
[1731331490352,1.39369101,216.85,216.74,0.2]
[1731331490553,26.73248692,216.87,216.8,26.73248692]
[1731331490873,31.34368692,216.87,216.78,26.73248692]
[1731331491055,31.34368692,216.87,216.76,26.73248692]
[1731331491056,26.73248692,216.83,216.76,26.73248692]
[1731331491370,26.73248692,216.83,216.75,20.0]
[1731331491544,26.73248692,216.81,216.74,26.73248692]
[1731331491749,88.5636,216.86,216.69,0.1]
[1731331491750,26.73248692,216.84,216.76,26.73248692]
[1731331492150,23.776884,216.83,216.76,26.73248692]
[1731331492375,31.34458692,216.82,216.74,26.73248692]
[1731331492553,26.73248692,216.8,216.72,26.73248692]
[1731331493676,31.34508692,216.8,216.72,26.73248692]
[1731331493967,4.6126,216.8,216.72,26.73248692]
[1731331494375,4.6126,216.8,216.74,26.73248692]
[1731331495687,93.1762,216.8,216.74,26.73248692]
[1731331495876,88.5636,216.81,216.77,26.73248692]
[1731331498274,93.1761,216.81,216.75,26.73248692]
[1731331499673,4.6125,216.81,216.77,26.73248692]
[1731331500594,4.6125,216.81,216.75,26.73248692]
[1731331501483,4.6125,216.81,216.77,26.73248692]
[1731331502494,88.5636,216.85,216.65,12.34076256]
[1731331502495,55.12097092,216.84,216.75,26.73248692]
[1731331503191,24.41207719,216.91,216.81,26.73248692]
[1731331503192,88.5636,216.88,216.81,26.73248692]
[1731331503491,88.5636,216.88,216.79,26.73248692]
[1731331503492,88.5636,216.87,216.79,26.73248692]
[1731331504074,26.73248692,216.86,216.77,26.73248692]
[1731331504275,26.73248692,216.84,216.77,26.73248692]
[1731331504472,26.73248692,216.82,216.73,26.73248692]
[1731331504686,23.776884,216.79,216.73,26.73248692]
[1731331504897,23.776884,216.79,216.7,16.71156754]
[1731331505080,23.776884,216.79,216.72,16.71156754]
[1731331505782,4.6129,216.78,216.72,16.71156754]
[1731331506297,23.776884,216.77,216.7,16.71156754]
[1731331506471,88.5636,216.76,216.7,16.71156754]
[1731331507394,16.71156754,216.74,216.65,23.07646754]
[1731331507695,21.32546754,216.74,216.65,23.07646754]
[1731331509575,16.71156754,216.7,216.62,20.51205039]
[1731331509796,16.71156754,216.7,216.61,16.71156754]
[1731331510780,4.6148,216.69,216.61,16.71156754]
[1731331510983,105.27516754,216.68,216.6,6.3264]
[1731331511182,105.27516754,216.68,216.57,9.828704]
[1731331511183,16.71156754,216.66,216.57,16.71156754]
[1731331511790,4.6148,216.69,216.55,15.05549182]
[1731331511791,16.71156754,216.64,216.55,31.76705936]
[1731331511995,16.71156754,216.62,216.55,31.76705936]
[1731331512386,16.71156754,216.62,216.55,16.71156754]
[1731331512899,4.6165,216.61,216.55,16.71156754]
[1731331513198,11.5372,216.69,216.55,16.71156754]
[1731331513199,88.5636,216.67,216.58,16.71156754]
[1731331513379,109.89056754,216.67,216.58,16.71156754]
[1731331513580,16.71156754,216.65,216.58,16.71156754]
[1731331513777,16.71156754,216.65,216.56,16.71156754]
[1731331513978,16.71156754,216.63,216.56,16.71156754]
[1731331514488,88.5636,216.69,216.61,20.0]
[1731331514688,16.71156754,216.69,216.61,20.0]
[1731331514895,16.71156754,216.69,216.57,17.88903169]
[1731331514896,16.71156754,216.67,216.58,16.71156754]
[1731331515105,4.6149,216.69,216.62,16.71156754]
[1731331515407,16.71156754,216.66,216.59,7.39352801]
[1731331516504,4.6157,216.65,216.59,7.39352801]
[1731331517287,26.76911219,216.66,216.57,26.76911219]
[1731331517493,4.6154,216.67,216.59,26.76911219]
[1731331518198,26.76911219,216.66,216.59,26.76911219]
[1731331518398,4.6157,216.65,216.57,43.7348827]
[1731331518695,115.33271219,216.64,216.57,16.96577051]
[1731331518910,26.76911219,216.62,216.54,20.0]
[1731331520099,88.5636,216.63,216.55,26.76911219]
[1731331520301,31.38541219,216.62,216.55,26.76911219]
[1731331523199,26.76911219,216.6,216.53,46.76911219]
[1731331523413,88.5636,216.59,216.52,9.5722425]
[1731331523595,88.5636,216.59,216.51,26.76911219]
[1731331523596,26.76911219,216.55,216.47,26.76911219]
[1731331523912,26.76911219,216.51,216.43,33.35141219]
[1731331524091,26.76911219,216.51,216.44,4.80239615]
[1731331524294,31.38781219,216.51,216.44,4.80239615]
[1731331524502,31.38781219,216.51,216.43,26.76911219]
[1731331524694,31.38781219,216.51,216.39,26.76911219]
[1731331524695,26.76911219,216.47,216.39,26.76911219]
[1731331524898,26.76911219,216.43,216.35,26.76911219]
[1731331525098,26.76911219,216.43,216.32,6.489]
[1731331525099,26.76911219,216.41,216.33,26.76911219]
[1731331525508,26.76911219,216.39,216.32,11.19220895]
[1731331525690,26.76911219,216.39,216.32,4.80320895]
[1731331526290,31.39041219,216.39,216.31,26.76911219]
[1731331527507,31.39041219,216.39,216.29,4.80477101]
[1731331527508,31.39011219,216.41,216.33,26.76911219]
[1731331527901,26.76911219,216.39,216.31,26.76911219]
[1731331528212,31.39011219,216.41,216.33,26.76911219]
[1731331529191,31.38921219,216.45,216.38,20.0]
[1731331529491,88.5636,216.48,216.41,26.76911219]
[1731331529691,4.619,216.5,216.43,26.76911219]
[1731331529899,26.76911219,216.51,216.44,20.0]
[1731331530098,31.38781219,216.51,216.44,20.0]
[1731331530414,4.6187,216.51,216.43,20.0]
[1731331530628,31.38781219,216.51,216.43,46.76911219]
[1731331530909,26.76911219,216.48,216.42,6.5728669]
[1731331531126,26.76911219,216.47,216.39,46.76911219]
[1731331532514,4.6197,216.46,216.39,46.76911219]
[1731331533511,26.76911219,216.47,216.39,46.76911219]
[1731331533512,93.1826,216.5,216.42,20.0]
[1731331533824,93.1826,216.5,216.43,26.76911219]
[1731331534118,93.1826,216.5,216.39,15.87853296]
[1731331534119,26.76911219,216.47,216.39,15.87853296]
[1731331534300,26.76911219,216.45,216.36,26.76911219]
[1731331534631,88.5636,216.44,216.36,26.76911219]
[1731331536206,93.1838,216.44,216.36,26.76911219]
[1731331536527,26.76911219,216.43,216.36,26.76911219]
[1731331537003,93.1838,216.44,216.37,20.0]
[1731331537420,93.1838,216.44,216.37,26.5728669]
[1731331538123,88.5636,216.44,216.4,26.76911219]
[1731331538324,4.6199,216.46,216.41,20.0]
[1731331539019,4.6199,216.46,216.41,20.0]
[1731331539216,4.6199,216.46,216.38,9.30566606]
[1731331539403,16.75885184,216.45,216.39,20.0]
[1731331539609,16.75885184,216.45,216.38,20.0]
[1731331540312,16.75885184,216.45,216.37,16.75885184]
[1731331540507,16.75885184,216.45,216.38,20.0]
[1731331540710,4.6201,216.45,216.38,20.0]
[1731331541012,21.37855184,216.47,216.38,26.5728669]
[1731331544936,21.37855184,216.47,216.33,0.92395077]
[1731331544937,16.75885184,216.43,216.36,20.0]
[1731331545120,105.32245184,216.45,216.36,20.0]
[1731331545631,88.5636,216.44,216.36,20.0]
[1731331545823,16.75885184,216.43,216.36,20.0]
[1731331546020,16.75885184,216.41,216.33,16.75885184]
[1731331546220,16.75885184,216.41,216.33,23.33171874]
[1731331546420,16.75885184,216.41,216.34,6.5728669]
[1731331547024,16.75885184,216.37,216.29,16.75885184]
[1731331547229,16.75885184,216.41,216.33,16.75885184]
[1731331547828,4.621,216.4,216.33,16.75885184]
[1731331549618,4.621,216.4,216.34,20.0]
[1731331549811,16.75885184,216.37,216.3,5.8071669]
[1731331550014,16.75885184,216.37,216.29,21.55368689]
[1731331550015,16.75885184,216.37,216.29,16.75885184]
[1731331550319,88.5636,216.41,216.35,16.75885184]
[1731331550638,4.6206,216.42,216.35,16.75885184]
[1731331551134,4.6206,216.42,216.36,20.0]
[1731331551323,16.75885184,216.41,216.34,20.0]
[1731331551522,16.75885184,216.39,216.31,36.75885184]
[1731331553513,4.6214,216.38,216.31,36.75885184]
[1731331556039,16.75885184,216.39,216.31,36.75885184]
[1731331556040,93.1854,216.37,216.31,36.75885184]
[1731331557938,93.1854,216.37,216.31,36.71465866]
[1731331559146,88.5636,216.37,216.31,36.71465866]
[1731331559520,93.1854,216.37,216.33,16.75885184]
[1731331559736,88.5636,216.37,216.33,16.75885184]
[1731331560327,88.5636,216.37,216.34,20.0]
[1731331562050,88.5636,216.36,216.34,20.0]
[1731331562245,88.5636,216.38,216.34,20.0]
[1731331567927,88.5636,216.37,216.34,20.0]
[1731331568327,88.5636,216.37,216.36,20.0]
[1731331569125,88.5636,216.42,216.36,35.11283296]
[1731331569328,4.62,216.45,216.36,35.11283296]
[1731331569329,88.5636,216.41,216.39,20.0]
[1731331570334,88.5636,216.44,216.39,20.0]
[1731331571253,88.5636,216.44,216.4,40.63573584]
[1731331571448,4.6182,216.53,216.43,20.0]
[1731331571655,88.5636,216.52,216.47,20.0]
[1731331572451,88.5636,216.52,216.48,16.75885184]
[1731331572768,109.94035184,216.55,216.51,20.0]